[Event "*** Titled Tuesday 3|2 Blitz"]
[Site "Chess.com"]
[Date "2016.05.03"]
[Round "9"]
[White "Gergo85"]
[Black "Fh2411"]
[Result "1-0"]
[WhiteElo "2443"]
[BlackElo "2266"]
[TimeControl "180+2"]
[EndTime "12:58:21 PDT"]
[Termination "Gergo85 won by resignation"]

1. f4 {[%clk 0:03:01.9]} 1... d5 {[%clk 0:02:59]} 2. Nf3 {[%clk 0:03:03.1]} 2...
Nf6 {[%clk 0:03:00.4]} 3. g3 {[%clk 0:03:04.3]} 3... g6 {[%clk 0:03:01.9]} 4.
Bg2 {[%clk 0:03:05.9]} 4... Bg7 {[%clk 0:03:03.8]} 5. O-O {[%clk 0:03:07.6]}
5... O-O {[%clk 0:03:05.3]} 6. d3 {[%clk 0:03:09.5]} 6... b6 {[%clk 0:03:06]} 7.
c3 {[%clk 0:03:11.1]} 7... Bb7 {[%clk 0:03:07.5]} 8. a4 {[%clk 0:03:12.5]} 8...
c5 {[%clk 0:03:01.5]} 9. a5 {[%clk 0:03:13.8]} 9... Nbd7 {[%clk 0:03:02]} 10.
Kh1 {[%clk 0:03:14.4]} 10... Qc8 {[%clk 0:03:00.8]} 11. Be3 {[%clk 0:03:14.5]}
11... Re8 {[%clk 0:02:57.8]} 12. Bg1 {[%clk 0:03:14.9]} 12... e5 {[%clk
0:02:55.9]} 13. fxe5 {[%clk 0:03:16.1]} 13... Nxe5 {[%clk 0:02:57.5]} 14. Nxe5
{[%clk 0:03:17.6]} 14... Rxe5 {[%clk 0:02:59.1]} 15. Nd2 {[%clk 0:03:18.3]}
15... Ng4 {[%clk 0:02:56.3]} 16. Nf3 {[%clk 0:03:14.4]} 16... Re8 {[%clk
0:02:53.5]} 17. d4 {[%clk 0:02:26.9]} 17... Ne3 {[%clk 0:02:34.5]} 18. Bxe3
{[%clk 0:02:26.9]} 18... Rxe3 {[%clk 0:02:36.4]} 19. Rf2 {[%clk 0:02:21.9]}
19... h6 {[%clk 0:02:26.2]} 20. Qd2 {[%clk 0:02:14.4]} 20... Qe6 {[%clk
0:02:26.1]} 21. Ne5 {[%clk 0:02:05.4]} 21... Rxe5 {[%clk 0:02:04.9]} 22. dxe5
{[%clk 0:02:06.3]} 22... Qxe5 {[%clk 0:01:59.1]} 23. Qf4 {[%clk 0:02:00.1]}
23... Qxf4 {[%clk 0:01:53.1]} 24. gxf4 {[%clk 0:02:01.3]} 24... Rd8 {[%clk
0:01:32.3]} 25. axb6 {[%clk 0:02:00.5]} 25... axb6 {[%clk 0:01:34.2]} 26. Ra7
{[%clk 0:02:00.9]} 26... Ba8 {[%clk 0:01:23.7]} 27. f5 {[%clk 0:02:00.1]} 27...
g5 {[%clk 0:01:23.2]} 28. f6 {[%clk 0:01:59.1]} 28... Bf8 {[%clk 0:01:24.1]} 29.
Rf1 {[%clk 0:01:53.3]} 29... Bc6 {[%clk 0:01:18.6]} 30. c4 {[%clk 0:01:27.7]}
30... Rd6 {[%clk 0:01:15.4]} 31. Rc7 {[%clk 0:01:24.3]} 31... Bd7 {[%clk
0:00:40.5]} 32. Bxd5 {[%clk 0:01:18.7]} 32... Be6 {[%clk 0:00:40.7]} 33. e4
{[%clk 0:01:16.8]} 33... Bxd5 {[%clk 0:00:38.7]} 34. cxd5 {[%clk 0:01:13]} 34...
Rd8 {[%clk 0:00:33.1]} 35. Rb7 {[%clk 0:01:10.7]} 35... Re8 {[%clk 0:00:31.1]}
36. Re1 {[%clk 0:01:05.4]} 36... Bd6 {[%clk 0:00:31.8]} 37. e5 {[%clk
0:00:47.9]} 37... Rxe5 {[%clk 0:00:30.7]} 38. Rxe5 {[%clk 0:00:49]} 38... Bxe5
{[%clk 0:00:32.6]} 39. Rxb6 {[%clk 0:00:50.6]} 39... Kh7 {[%clk 0:00:32.9]} 40.
d6 {[%clk 0:00:45.2]} 40... Bxf6 {[%clk 0:00:33.1]} 41. d7 {[%clk 0:00:46.5]}
41... Be7 {[%clk 0:00:33.9]} 42. Rb8 {[%clk 0:00:46]} 1-0

[Event "*** Titled Tuesday 3|2 Blitz"]
[Site "Chess.com"]
[Date "2016.05.03"]
[Round "9"]
[White "cabalista"]
[Black "ChadaevNikolay"]
[Result "0-1"]
[WhiteElo "2380"]
[BlackElo "2565"]
[TimeControl "180+2"]
[EndTime "12:58:35 PDT"]
[Termination "ChadaevNikolay won by resignation"]

1. e4 {[%clk 0:03:01.9]} 1... Nf6 {[%clk 0:02:58.9]} 2. e5 {[%clk 0:03:02]} 2...
Nd5 {[%clk 0:02:59.7]} 3. d4 {[%clk 0:03:02.1]} 3... d6 {[%clk 0:03:00.9]} 4.
Bc4 {[%clk 0:03:02.5]} 4... Nb6 {[%clk 0:03:00.4]} 5. Bb3 {[%clk 0:03:02.2]}
5... dxe5 {[%clk 0:02:57.2]} 6. Qh5 {[%clk 0:03:02.1]} 6... e6 {[%clk 0:02:49]}
7. dxe5 {[%clk 0:03:02.4]} 7... Nc6 {[%clk 0:02:45.3]} 8. Nf3 {[%clk 0:03:02.4]}
8... Nd4 {[%clk 0:02:44.9]} 9. Nxd4 {[%clk 0:03:00.1]} 9... Qxd4 {[%clk
0:02:44.6]} 10. O-O {[%clk 0:03:00.2]} 10... Bd7 {[%clk 0:02:44.7]} 11. Rd1
{[%clk 0:02:54.4]} 11... Qc5 {[%clk 0:02:44.5]} 12. Be3 {[%clk 0:02:45.1]} 12...
Qc6 {[%clk 0:02:45.2]} 13. Nc3 {[%clk 0:02:38.6]} 13... g6 {[%clk 0:02:46]} 14.
Qh4 {[%clk 0:02:36.8]} 14... Bg7 {[%clk 0:02:46.5]} 15. a4 {[%clk 0:02:02.7]}
15... a5 {[%clk 0:02:41.5]} 16. Qg3 {[%clk 0:01:54.5]} 16... O-O {[%clk
0:02:24.6]} 17. h4 {[%clk 0:01:48.1]} 17... Be8 {[%clk 0:02:15.4]} 18. Nb5
{[%clk 0:01:17.7]} 18... Nc4 {[%clk 0:02:14.2]} 19. Nd4 {[%clk 0:01:14.8]} 19...
Qa6 {[%clk 0:02:14.2]} 20. Bxc4 {[%clk 0:01:09.4]} 20... Qxc4 {[%clk 0:02:14.4]}
21. c3 {[%clk 0:01:08.2]} 21... Bxa4 {[%clk 0:02:10.8]} 22. Re1 {[%clk
0:00:55.4]} 22... c5 {[%clk 0:02:06.9]} 23. Nf3 {[%clk 0:00:55.3]} 23... Bc6
{[%clk 0:02:06.3]} 24. Bg5 {[%clk 0:00:45.7]} 24... Qd3 {[%clk 0:02:01.8]} 25.
Re3 {[%clk 0:00:36.7]} 25... Qf5 {[%clk 0:01:57.3]} 26. Rae1 {[%clk 0:00:37]}
26... b6 {[%clk 0:01:49.8]} 27. Nh2 {[%clk 0:00:37.1]} 27... h6 {[%clk
0:01:48.4]} 28. Be7 {[%clk 0:00:33]} 28... Rfe8 {[%clk 0:01:48.4]} 29. Bd6
{[%clk 0:00:33.4]} 29... a4 {[%clk 0:01:49.5]} 30. Ng4 {[%clk 0:00:31.2]} 30...
a3 {[%clk 0:01:50.1]} 31. bxa3 {[%clk 0:00:31.5]} 31... Rxa3 {[%clk 0:01:51.1]}
32. Nf6+ {[%clk 0:00:31.4]} 32... Bxf6 {[%clk 0:01:51.5]} 33. exf6 {[%clk
0:00:31.9]} 33... Qxf6 {[%clk 0:01:53]} 34. Be5 {[%clk 0:00:32]} 34... Qf5
{[%clk 0:01:54.1]} 35. Rd1 {[%clk 0:00:21.4]} 35... Rea8 {[%clk 0:01:53]} 36.
Kh2 {[%clk 0:00:21.1]} 36... Bd5 {[%clk 0:01:51.8]} 37. c4 {[%clk 0:00:19.3]}
37... Rxe3 {[%clk 0:01:51.5]} 38. Qxe3 {[%clk 0:00:19.5]} 38... Bxc4 {[%clk
0:01:41.8]} 39. Bc3 {[%clk 0:00:16.3]} 39... Qh5 {[%clk 0:01:42]} 40. Qd2 {[%clk
0:00:10.6]} 40... Qxh4+ {[%clk 0:01:36.6]} 41. Kg1 {[%clk 0:00:11.4]} 41... Bd5
{[%clk 0:01:37.6]} 42. Qe3 {[%clk 0:00:11.9]} 42... Qg5 {[%clk 0:01:37.1]} 43.
Qh3 {[%clk 0:00:10.5]} 43... Ra3 {[%clk 0:01:34.8]} 44. Rd3 {[%clk 0:00:11.2]}
44... b5 {[%clk 0:01:27.3]} 45. Kh2 {[%clk 0:00:08.1]} 45... b4 {[%clk
0:01:26.3]} 46. Rg3 {[%clk 0:00:08.7]} 46... Rxc3 {[%clk 0:01:25.7]} 0-1

[Event "*** Titled Tuesday 3|2 Blitz"]
[Site "Chess.com"]
[Date "2016.05.03"]
[Round "9"]
[White "GeorgMeier"]
[Black "exoticprincess"]
[Result "0-1"]
[WhiteElo "2754"]
[BlackElo "2837"]
[TimeControl "180+2"]
[EndTime "12:58:58 PDT"]
[Termination "exoticprincess won by resignation"]

1. Nf3 {[%clk 0:03:01.9]} 1... Nf6 {[%clk 0:02:56.2]} 2. g3 {[%clk 0:03:03.2]}
2... g6 {[%clk 0:02:56.5]} 3. Bg2 {[%clk 0:03:04.5]} 3... Bg7 {[%clk 0:02:58.2]}
4. O-O {[%clk 0:03:06.3]} 4... O-O {[%clk 0:02:59.5]} 5. d4 {[%clk 0:03:07.9]}
5... d6 {[%clk 0:02:59.4]} 6. b3 {[%clk 0:03:08.9]} 6... a5 {[%clk 0:02:58.1]}
7. a4 {[%clk 0:03:06.6]} 7... c6 {[%clk 0:02:56.8]} 8. Nbd2 {[%clk 0:03:06.9]}
8... Na6 {[%clk 0:02:57.4]} 9. Re1 {[%clk 0:03:00.5]} 9... Bg4 {[%clk 0:02:55]}
10. h3 {[%clk 0:02:58.4]} 10... Bxf3 {[%clk 0:02:56]} 11. Bxf3 {[%clk
0:02:56.5]} 11... e5 {[%clk 0:02:47.7]} 12. dxe5 {[%clk 0:02:54.2]} 12... Nd7
{[%clk 0:02:45.2]} 13. Bg2 {[%clk 0:02:38.6]} 13... Nxe5 {[%clk 0:02:44.5]} 14.
Rb1 {[%clk 0:02:35.8]} 14... d5 {[%clk 0:02:43.4]} 15. Bb2 {[%clk 0:02:32.8]}
15... Re8 {[%clk 0:02:41.7]} 16. Bd4 {[%clk 0:02:02.7]} 16... Nd3 {[%clk
0:02:29.1]} 17. exd3 {[%clk 0:02:01.9]} 17... Bxd4 {[%clk 0:02:23.9]} 18. Nf3
{[%clk 0:01:53.7]} 18... Qf6 {[%clk 0:02:14.6]} 19. Nxd4 {[%clk 0:01:48.3]}
19... Qxd4 {[%clk 0:02:16.3]} 20. Qd2 {[%clk 0:01:50]} 20... Nc5 {[%clk
0:02:00.1]} 21. Rbd1 {[%clk 0:01:45.2]} 21... Qb4 {[%clk 0:01:55]} 22. Qxb4
{[%clk 0:01:36.9]} 22... axb4 {[%clk 0:01:55.8]} 23. d4 {[%clk 0:01:34.8]} 23...
Rxe1+ {[%clk 0:01:52.6]} 24. Rxe1 {[%clk 0:01:36]} 24... Ne6 {[%clk 0:01:54.5]}
25. Rd1 {[%clk 0:01:37.5]} 25... Kf8 {[%clk 0:01:52.9]} 26. Kf1 {[%clk
0:01:34.1]} 26... Re8 {[%clk 0:01:52.4]} 27. h4 {[%clk 0:01:30.1]} 27... Re7
{[%clk 0:01:41.1]} 28. Bh3 {[%clk 0:01:23.8]} 28... f5 {[%clk 0:01:41.2]} 29.
Bg2 {[%clk 0:01:24.5]} 29... Ke8 {[%clk 0:01:41.1]} 30. f4 {[%clk 0:01:22.5]}
30... Kd7 {[%clk 0:01:39.7]} 31. Kf2 {[%clk 0:01:23.9]} 31... Kd6 {[%clk
0:01:40.5]} 32. Bf3 {[%clk 0:01:24.3]} 32... h5 {[%clk 0:01:38]} 33. Rd2 {[%clk
0:01:24.4]} 33... Nc7 {[%clk 0:01:25.2]} 34. Be2 {[%clk 0:01:25.5]} 34... Ne8
{[%clk 0:01:22.3]} 35. Bf3 {[%clk 0:01:19.5]} 35... Nf6 {[%clk 0:01:15.3]} 36.
Rd1 {[%clk 0:01:10.3]} 36... c5 {[%clk 0:01:15.6]} 37. dxc5+ {[%clk 0:01:06.8]}
37... Kxc5 {[%clk 0:01:17.2]} 38. a5 {[%clk 0:00:56.8]} 38... Re6 {[%clk
0:01:10.2]} 39. Ra1 {[%clk 0:00:49.8]} 39... Ne4+ {[%clk 0:01:11]} 40. Bxe4
{[%clk 0:00:49]} 40... fxe4 {[%clk 0:01:05.4]} 41. Ke3 {[%clk 0:00:47]} 41...
d4+ {[%clk 0:01:04.9]} 42. Kd2 {[%clk 0:00:48.1]} 42... Rc6 {[%clk 0:00:46.3]}
43. Rg1 {[%clk 0:00:44.7]} 43... Kd5 {[%clk 0:00:41.8]} 44. g4 {[%clk
0:00:38.9]} 44... e3+ {[%clk 0:00:42.4]} 45. Kd1 {[%clk 0:00:40]} 45... Ke4
{[%clk 0:00:40.4]} 46. gxh5 {[%clk 0:00:40.1]} 46... gxh5 {[%clk 0:00:41.5]} 47.
Rg8 {[%clk 0:00:40.6]} 47... Kf3 {[%clk 0:00:42.1]} 0-1

[Event "*** Titled Tuesday 3|2 Blitz"]
[Site "Chess.com"]
[Date "2016.05.03"]
[Round "9"]
[White "Spas_Kozhuharov"]
[Black "Philofive"]
[Result "1-0"]
[WhiteElo "2481"]
[BlackElo "2361"]
[TimeControl "180+2"]
[EndTime "12:59:14 PDT"]
[Termination "Spas_Kozhuharov won by resignation"]

1. d4 {[%clk 0:03:01.9]} 1... Nf6 {[%clk 0:03:00.3]} 2. c4 {[%clk 0:03:02.2]}
2... g6 {[%clk 0:03:00.9]} 3. Nc3 {[%clk 0:03:03]} 3... Bg7 {[%clk 0:03:01.5]}
4. e4 {[%clk 0:03:03.5]} 4... d6 {[%clk 0:03:02.4]} 5. f3 {[%clk 0:03:04.9]}
5... O-O {[%clk 0:03:03.2]} 6. Be3 {[%clk 0:03:06.5]} 6... c5 {[%clk 0:03:04.2]}
7. d5 {[%clk 0:03:08.1]} 7... e6 {[%clk 0:03:04.2]} 8. Qd2 {[%clk 0:03:08.2]}
8... exd5 {[%clk 0:03:05]} 9. cxd5 {[%clk 0:03:10.1]} 9... Nbd7 {[%clk
0:02:54.4]} 10. Nh3 {[%clk 0:03:10.3]} 10... a6 {[%clk 0:02:45.8]} 11. a4 {[%clk
0:03:09.4]} 11... Ne5 {[%clk 0:02:45.6]} 12. Nf2 {[%clk 0:03:09.6]} 12... Bd7
{[%clk 0:02:45.8]} 13. Be2 {[%clk 0:02:53.1]} 13... b5 {[%clk 0:02:45.9]} 14.
axb5 {[%clk 0:02:53.4]} 14... axb5 {[%clk 0:02:46.3]} 15. Rxa8 {[%clk
0:02:55.3]} 15... Qxa8 {[%clk 0:02:47.1]} 16. Nxb5 {[%clk 0:02:57.2]} 16... Bxb5
{[%clk 0:02:41.4]} 17. Bxb5 {[%clk 0:02:57.5]} 17... Rb8 {[%clk 0:02:37.5]} 18.
Be2 {[%clk 0:02:58.3]} 18... Qa1+ {[%clk 0:02:33.2]} 19. Nd1 {[%clk 0:02:59.3]}
19... Qa4 {[%clk 0:02:09.5]} 20. O-O {[%clk 0:02:55.6]} 20... Nc4 {[%clk
0:02:09.8]} 21. Bxc4 {[%clk 0:02:56.1]} 21... Qxc4 {[%clk 0:02:10.7]} 22. Bf4
{[%clk 0:02:43.6]} 22... Ne8 {[%clk 0:02:08.7]} 23. Be3 {[%clk 0:02:30.4]} 23...
Nc7 {[%clk 0:01:56.1]} 24. Qa5 {[%clk 0:01:59.7]} 24... Nb5 {[%clk 0:01:46.6]}
25. Qa6 {[%clk 0:01:58.5]} 25... Qb3 {[%clk 0:01:39.5]} 26. Qc6 {[%clk
0:01:41.5]} 26... Be5 {[%clk 0:01:28.1]} 27. f4 {[%clk 0:01:38]} 27... Bxb2
{[%clk 0:01:08.9]} 28. e5 {[%clk 0:01:33.3]} 28... Nd4 {[%clk 0:00:48.4]} 29.
Qxd6 {[%clk 0:01:29.5]} 29... Nf5 {[%clk 0:00:48.1]} 30. Qxc5 {[%clk 0:01:24.8]}
30... Ba3 {[%clk 0:00:20.7]} 31. Qa7 {[%clk 0:01:13.7]} 31... Nxe3 {[%clk
0:00:21.6]} 32. Nxe3 {[%clk 0:01:05.5]} 32... Rc8 {[%clk 0:00:19.3]} 33. d6
{[%clk 0:00:42.7]} 33... Rc5 {[%clk 0:00:17.5]} 34. Ng4 {[%clk 0:00:36.5]} 34...
Kg7 {[%clk 0:00:13.1]} 35. Qe7 {[%clk 0:00:32.2]} 35... h5 {[%clk 0:00:06.2]}
36. Qf6+ {[%clk 0:00:28.4]} 36... Kh7 {[%clk 0:00:07.2]} 37. d7 {[%clk
0:00:24.4]} 37... Rc1 {[%clk 0:00:02.9]} 38. Rxc1 {[%clk 0:00:16.6]} 38... Bxc1
{[%clk 0:00:04]} 39. d8=Q {[%clk 0:00:16.9]} 39... Qd1+ {[%clk 0:00:02.4]} 40.
Qxd1 {[%clk 0:00:16.7]} 1-0

[Event "*** Titled Tuesday 3|2 Blitz"]
[Site "Chess.com"]
[Date "2016.05.03"]
[Round "9"]
[White "Pomoc"]
[Black "rasool78"]
[Result "0-1"]
[WhiteElo "2069"]
[BlackElo "2177"]
[TimeControl "180+2"]
[EndTime "12:59:29 PDT"]
[Termination "rasool78 won on time"]

1. e4 {[%clk 0:03:01.9]} 1... g6 {[%clk 0:03:01]} 2. d4 {[%clk 0:03:02.4]} 2...
Bg7 {[%clk 0:03:02.5]} 3. Nc3 {[%clk 0:03:03.4]} 3... c5 {[%clk 0:03:03.9]} 4.
dxc5 {[%clk 0:03:01.7]} 4... Bxc3+ {[%clk 0:03:05.2]} 5. bxc3 {[%clk 0:03:02.4]}
5... Qa5 {[%clk 0:03:06.6]} 6. Qd4 {[%clk 0:03:02.6]} 6... Nf6 {[%clk
0:03:07.4]} 7. Bd2 {[%clk 0:02:57.4]} 7... Nc6 {[%clk 0:03:07.1]} 8. Qc4 {[%clk
0:02:39.6]} 8... b6 {[%clk 0:03:06.5]} 9. cxb6 {[%clk 0:02:24.5]} 9... axb6
{[%clk 0:03:05.6]} 10. Qb5 {[%clk 0:02:18.6]} 10... Nxe4 {[%clk 0:03:01.2]} 11.
Qxa5 {[%clk 0:02:14.5]} 11... Rxa5 {[%clk 0:02:59.4]} 12. Nf3 {[%clk 0:02:14.2]}
12... Nxd2 {[%clk 0:02:59.6]} 13. Kxd2 {[%clk 0:02:13.7]} 13... d6 {[%clk
0:02:56.6]} 14. Rb1 {[%clk 0:01:59]} 14... Kd7 {[%clk 0:02:38.3]} 15. Rxb6
{[%clk 0:01:38.3]} 15... Kc7 {[%clk 0:02:39.3]} 16. Rb2 {[%clk 0:01:38.2]} 16...
Be6 {[%clk 0:02:38.8]} 17. Nd4 {[%clk 0:01:20.6]} 17... Nxd4 {[%clk 0:02:35.6]}
18. cxd4 {[%clk 0:01:22.5]} 18... Bxa2 {[%clk 0:02:18.9]} 19. Bd3 {[%clk
0:01:19.3]} 19... Bd5 {[%clk 0:02:16.5]} 20. f3 {[%clk 0:01:17.5]} 20... Rb8
{[%clk 0:02:12.6]} 21. Rxb8 {[%clk 0:01:10.8]} 21... Kxb8 {[%clk 0:02:13.3]} 22.
Re1 {[%clk 0:01:08.1]} 22... e6 {[%clk 0:02:13.5]} 23. Rb1+ {[%clk 0:00:57.1]}
23... Kc7 {[%clk 0:02:13.4]} 24. c4 {[%clk 0:00:53.9]} 24... Ra2+ {[%clk
0:02:10.5]} 25. Kc3 {[%clk 0:00:48.8]} 25... Bc6 {[%clk 0:02:07.3]} 26. Rb2
{[%clk 0:00:47.5]} 26... Ra1 {[%clk 0:01:56.4]} 27. Bb1 {[%clk 0:00:43.7]} 27...
f5 {[%clk 0:01:49.8]} 28. Rb4 {[%clk 0:00:36]} 28... Ra3+ {[%clk 0:01:46.2]} 29.
Rb3 {[%clk 0:00:35.2]} 29... Rxb3+ {[%clk 0:01:45.9]} 30. Kxb3 {[%clk
0:00:35.8]} 30... e5 {[%clk 0:01:44.7]} 31. dxe5 {[%clk 0:00:25.8]} 31... dxe5
{[%clk 0:01:45.1]} 32. c5 {[%clk 0:00:24]} 32... Bb5 {[%clk 0:01:40]} 33. Kb4
{[%clk 0:00:22]} 33... Bf1 {[%clk 0:01:40.6]} 34. g3 {[%clk 0:00:21.8]} 34...
Bg2 {[%clk 0:01:40.1]} 35. f4 {[%clk 0:00:19.3]} 35... e4 {[%clk 0:01:41.4]} 36.
Kc4 {[%clk 0:00:14.5]} 36... Kc6 {[%clk 0:01:33.9]} 37. Kd4 {[%clk 0:00:14.6]}
37... Bf1 {[%clk 0:01:29.8]} 38. Bc2 {[%clk 0:00:13.2]} 38... h6 {[%clk
0:01:20]} 39. Ba4+ {[%clk 0:00:10]} 39... Bb5 {[%clk 0:01:20.7]} 40. Bb3 {[%clk
0:00:10.6]} 40... Kc7 {[%clk 0:01:15.4]} 41. Bd5 {[%clk 0:00:09.7]} 41... g5
{[%clk 0:01:13.2]} 42. Ke3 {[%clk 0:00:08.8]} 42... Bd7 {[%clk 0:01:11]} 43. h4
{[%clk 0:00:07.6]} 43... gxh4 {[%clk 0:01:08.8]} 44. gxh4 {[%clk 0:00:08.1]}
44... Bc8 {[%clk 0:01:05.7]} 45. Kd4 {[%clk 0:00:08.3]} 45... Kd7 {[%clk
0:01:04.5]} 46. Ke3 {[%clk 0:00:06.9]} 46... Ke7 {[%clk 0:01:05.8]} 47. Kd4
{[%clk 0:00:07]} 47... Kf6 {[%clk 0:01:06.9]} 48. Ke3 {[%clk 0:00:04.4]} 48...
Kg6 {[%clk 0:01:08.2]} 49. c6 {[%clk 0:00:04.2]} 49... Kh5 {[%clk 0:01:05.6]}
50. c7 {[%clk 0:00:04.1]} 50... Kxh4 {[%clk 0:01:06]} 51. Bf7 {[%clk 0:00:02.7]}
51... Kg4 {[%clk 0:01:05]} 52. Bd5 {[%clk 0:00:02.2]} 52... h5 {[%clk
0:01:05.8]} 0-1

[Event "*** Titled Tuesday 3|2 Blitz"]
[Site "Chess.com"]
[Date "2016.05.03"]
[Round "9"]
[White "charlescandycampbell"]
[Black "chess960now"]
[Result "0-1"]
[WhiteElo "2055"]
[BlackElo "1994"]
[TimeControl "180+2"]
[EndTime "12:59:40 PDT"]
[Termination "chess960now won by checkmate"]

1. d4 {[%clk 0:03:01.9]} 1... Nf6 {[%clk 0:03:00]} 2. c4 {[%clk 0:03:02.1]} 2...
c5 {[%clk 0:03:00.7]} 3. d5 {[%clk 0:03:03]} 3... b5 {[%clk 0:03:01.8]} 4. a4
{[%clk 0:03:03.9]} 4... bxc4 {[%clk 0:02:49.5]} 5. Nc3 {[%clk 0:03:04.8]} 5...
d6 {[%clk 0:02:41]} 6. e4 {[%clk 0:03:05.5]} 6... Ba6 {[%clk 0:02:39.5]} 7. a5
{[%clk 0:03:05]} 7... Nbd7 {[%clk 0:02:37.4]} 8. f4 {[%clk 0:03:05.5]} 8... g6
{[%clk 0:02:37.9]} 9. Nf3 {[%clk 0:03:06.5]} 9... Bg7 {[%clk 0:02:38.7]} 10. Nd2
{[%clk 0:03:07.7]} 10... O-O {[%clk 0:02:34.9]} 11. Bxc4 {[%clk 0:03:08.3]}
11... Bxc4 {[%clk 0:02:28.8]} 12. Nxc4 {[%clk 0:03:09.1]} 12... Rb8 {[%clk
0:02:25.6]} 13. O-O {[%clk 0:03:09.4]} 13... Rb4 {[%clk 0:02:25.7]} 14. Qe2
{[%clk 0:03:06.7]} 14... Qc8 {[%clk 0:02:21.1]} 15. e5 {[%clk 0:03:05.6]} 15...
Ne8 {[%clk 0:02:13.4]} 16. Na2 {[%clk 0:02:50.8]} 16... Rb8 {[%clk 0:01:48.7]}
17. Bd2 {[%clk 0:02:45]} 17... Qa6 {[%clk 0:01:48.6]} 18. Bc3 {[%clk 0:02:44.5]}
18... Rb3 {[%clk 0:01:01.9]} 19. Nc1 {[%clk 0:02:43.2]} 19... Rb8 {[%clk
0:00:59.7]} 20. Re1 {[%clk 0:02:42.6]} 20... Rb7 {[%clk 0:00:47.2]} 21. exd6
{[%clk 0:02:35.4]} 21... exd6 {[%clk 0:00:45.8]} 22. h3 {[%clk 0:01:54]} 22...
Bd4+ {[%clk 0:00:18.8]} 23. Kh2 {[%clk 0:01:53.2]} 23... Nef6 {[%clk 0:00:19]}
24. Qd3 {[%clk 0:01:16.4]} 24... Nxd5 {[%clk 0:00:15.3]} 25. Bxd4 {[%clk
0:01:16.7]} 25... cxd4 {[%clk 0:00:13.5]} 26. Qxd4 {[%clk 0:01:17.5]} 26... N7f6
{[%clk 0:00:13.3]} 27. Nd3 {[%clk 0:01:10]} 27... Rc8 {[%clk 0:00:11.2]} 28. Ne3
{[%clk 0:01:07.6]} 28... Nxe3 {[%clk 0:00:05.2]} 29. Rxe3 {[%clk 0:01:07.4]}
29... d5 {[%clk 0:00:05]} 30. g4 {[%clk 0:00:58.9]} 30... Rc4 {[%clk 0:00:05.5]}
31. Qe5 {[%clk 0:00:59.5]} 31... Ne4 {[%clk 0:00:05.5]} 32. Qxd5 {[%clk
0:00:55.7]} 32... Rc2+ {[%clk 0:00:06.6]} 33. Kg1 {[%clk 0:00:54.7]} 33... Nd2
{[%clk 0:00:04]} 34. Re8+ {[%clk 0:00:51.3]} 34... Kg7 {[%clk 0:00:05]} 35. Qd4+
{[%clk 0:00:49.4]} 35... f6 {[%clk 0:00:06.2]} 36. Qe3 {[%clk 0:00:46.4]} 36...
Qc6 {[%clk 0:00:04.2]} 37. Re7+ {[%clk 0:00:31.3]} 37... Rxe7 {[%clk 0:00:04.1]}
38. Qxe7+ {[%clk 0:00:32.3]} 38... Kg8 {[%clk 0:00:05.8]} 39. Qd8+ {[%clk
0:00:32.7]} 39... Kg7 {[%clk 0:00:06.8]} 40. Qe7+ {[%clk 0:00:33.7]} 40... Kg8
{[%clk 0:00:07.9]} 41. Qd8+ {[%clk 0:00:33.7]} 41... Kg7 {[%clk 0:00:09]} 42.
Qe7+ {[%clk 0:00:28.1]} 42... Kg8 {[%clk 0:00:10]} 43. Qe3 {[%clk 0:00:20.5]}
43... Nf3+ {[%clk 0:00:10.1]} 44. Kf1 {[%clk 0:00:21.1]} 44... Nh2+ {[%clk
0:00:09.2]} 45. Ke1 {[%clk 0:00:22.4]} 45... Qh1+ {[%clk 0:00:09]} 46. Qg1
{[%clk 0:00:14.8]} 46... Qxg1# {[%clk 0:00:10.1]} 0-1

[Event "*** Titled Tuesday 3|2 Blitz"]
[Site "Chess.com"]
[Date "2016.05.03"]
[Round "9"]
[White "bugsbunny444"]
[Black "tac49"]
[Result "1/2-1/2"]
[WhiteElo "2394"]
[BlackElo "2559"]
[TimeControl "180+2"]
[EndTime "12:59:53 PDT"]
[Termination "Game drawn by agreement"]

1. Nf3 {[%clk 0:03:01.9]} 1... Nf6 {[%clk 0:02:59.7]} 2. c4 {[%clk 0:03:03.3]}
2... g6 {[%clk 0:02:57.6]} 3. b4 {[%clk 0:03:03.6]} 3... Bg7 {[%clk 0:02:59]} 4.
Bb2 {[%clk 0:03:05.1]} 4... O-O {[%clk 0:03:00.5]} 5. g3 {[%clk 0:03:06.5]} 5...
c6 {[%clk 0:03:01.7]} 6. Bg2 {[%clk 0:03:07.6]} 6... d5 {[%clk 0:03:03.3]} 7.
cxd5 {[%clk 0:03:08.9]} 7... cxd5 {[%clk 0:03:05]} 8. O-O {[%clk 0:03:10.4]}
8... Bg4 {[%clk 0:02:54.2]} 9. d3 {[%clk 0:03:10.1]} 9... Nbd7 {[%clk
0:02:49.7]} 10. Nbd2 {[%clk 0:03:06.8]} 10... Re8 {[%clk 0:02:48.5]} 11. Ne5
{[%clk 0:02:45.9]} 11... Nxe5 {[%clk 0:02:46]} 12. Bxe5 {[%clk 0:02:46.2]} 12...
Qd7 {[%clk 0:02:39.8]} 13. Re1 {[%clk 0:02:40]} 13... Bh3 {[%clk 0:02:33.6]} 14.
Bh1 {[%clk 0:02:01.7]} 14... Rac8 {[%clk 0:02:25.1]} 15. Qb3 {[%clk 0:01:50.9]}
15... Be6 {[%clk 0:01:30.4]} 16. Qb2 {[%clk 0:01:41.7]} 16... Red8 {[%clk
0:01:23.8]} 17. Nf3 {[%clk 0:01:42]} 17... Bg4 {[%clk 0:01:20.4]} 18. Rac1
{[%clk 0:01:34.2]} 18... a6 {[%clk 0:01:20.3]} 19. a3 {[%clk 0:01:25.1]} 19...
Bxf3 {[%clk 0:01:13.4]} 20. Bxf3 {[%clk 0:01:25.7]} 20... Ne8 {[%clk 0:01:14.8]}
21. Rc5 {[%clk 0:00:59.8]} 21... e6 {[%clk 0:01:06.2]} 22. Bxg7 {[%clk
0:00:47.4]} 22... Nxg7 {[%clk 0:01:05.5]} 23. Rec1 {[%clk 0:00:45.6]} 23... b6
{[%clk 0:01:01.6]} 24. R5c3 {[%clk 0:00:33.6]} 24... Nf5 {[%clk 0:00:59.5]} 25.
Bg4 {[%clk 0:00:31.7]} 25... Nd6 {[%clk 0:00:56.6]} 26. h4 {[%clk 0:00:21.2]}
26... Nb5 {[%clk 0:00:44.9]} 27. Rxc8 {[%clk 0:00:15.9]} 27... Rxc8 {[%clk
0:00:46.8]} 28. a4 {[%clk 0:00:08.1]} 28... Rxc1+ {[%clk 0:00:40.2]} 29. Qxc1
{[%clk 0:00:10]} 29... Qc7 {[%clk 0:00:22.8]} 30. Qxc7 {[%clk 0:00:05.5]} 30...
Nxc7 {[%clk 0:00:24.7]} 31. e3 {[%clk 0:00:05.3]} 31... a5 {[%clk 0:00:24.9]}
32. bxa5 {[%clk 0:00:05.9]} 32... bxa5 {[%clk 0:00:26.8]} 33. d4 {[%clk
0:00:04.9]} 33... Kf8 {[%clk 0:00:27.8]} 34. Kf1 {[%clk 0:00:05.3]} 34... Ke7
{[%clk 0:00:28.9]} 35. Ke1 {[%clk 0:00:06.6]} 35... Kd6 {[%clk 0:00:30]} 36. Kd2
{[%clk 0:00:07.3]} 36... Na8 {[%clk 0:00:30.4]} 37. Be2 {[%clk 0:00:06.3]} 37...
Nb6 {[%clk 0:00:31]} 38. Bb5 {[%clk 0:00:07.5]} 38... f6 {[%clk 0:00:32.3]} 39.
Kc3 {[%clk 0:00:05.9]} 39... h6 {[%clk 0:00:32.2]} 40. Be8 {[%clk 0:00:04.3]}
40... g5 {[%clk 0:00:33.2]} 41. hxg5 {[%clk 0:00:04.9]} 41... hxg5 {[%clk
0:00:34.6]} 42. Bb5 {[%clk 0:00:05.2]} 42... Nc8 {[%clk 0:00:34.9]} 43. Bd3
{[%clk 0:00:04.2]} 43... Ne7 {[%clk 0:00:34.2]} 44. f4 {[%clk 0:00:04.7]} 44...
g4 {[%clk 0:00:19.5]} 45. Kd2 {[%clk 0:00:02.5]} 45... Nc6 {[%clk 0:00:15.1]}
46. Be2 {[%clk 0:00:03.2]} 46... f5 {[%clk 0:00:15.8]} 47. Bb5 {[%clk
0:00:04.2]} 47... Nb4 {[%clk 0:00:16.1]} 48. Kc3 {[%clk 0:00:04.7]} 1/2-1/2